fUST/lending_fUST_20250206
["ID","MTS","AMOUNT","RATE_DAILY","PERIOD"]
[351863407,1738824656800,-500.0,0.0001452,2]
[351863409,1738824656810,-151.0,0.0001452,2]
[351863411,1738824656821,-504.48,0.0001452,2]
[351863413,1738824656831,-500.0,0.0001452,2]
[351863415,1738824656842,-500.0,0.0001452,2]
[351863417,1738824656853,-500.0,0.0001452,2]
[351863419,1738824656863,-523.14,0.0001452,2]
[351863421,1738824656873,-54214.48,0.0001452,2]
[351863423,1738824656883,-1441.43,0.0001452,2]
[351863425,1738824656893,-936.73,0.0001452,2]
[351863427,1738824656903,-613.53,0.0001452,2]
[351863429,1738824656913,-2003.93,0.0001452,2]
[351863431,1738824656923,-619.5,0.0001452,2]
[351863433,1738824656933,-500.0,0.0001452,2]
[351863436,1738824656943,-2827.37,0.0001452,2]
[351863438,1738824656953,-500.0,0.0001452,2]
[351863439,1738824656963,-5311.61,0.0001452,2]
[351863441,1738824656973,-2123.3,0.0001452,2]
[351863443,1738824656983,-151.0,0.0001452,2]
[351863445,1738824656992,-500.0,0.0001452,2]
[351863447,1738824657003,-151.0,0.0001452,2]
[351863449,1738824657013,-1611.08,0.0001452,2]
[351863451,1738824657023,-874.61,0.0001452,2]
[351863453,1738824657035,-2457.5,0.0001452,2]
[351863455,1738824657045,-306.0,0.00014548,2]
[351863457,1738824657055,-1388.06559307,0.00014563,2]
[351863459,1738824657066,-501.09183101,0.00014573,2]
[351863462,1738824657076,-500.0,0.00014573,2]
[351863464,1738824657086,-500.0,0.00014573,2]
[351863466,1738824657095,-328.13739955,0.00014573,2]
[351863467,1738824657104,-267.76708519,0.00014573,2]
[351863470,1738824657115,-500.0,0.00014573,2]
[351863471,1738824657125,-154.0,0.00014579,2]
[351863473,1738824657135,-154.0,0.00014579,2]
[351863476,1738824657145,-154.0,0.00014579,2]
[351863478,1738824657154,-154.0,0.00014579,2]
[351863480,1738824657164,-154.0,0.00014579,2]
[351863482,1738824657174,-154.0,0.00014579,2]
[351863484,1738824657184,-154.0,0.00014579,2]
[351863486,1738824657194,-154.0,0.00014579,2]
[351863488,1738824657204,-154.0,0.00014579,2]
[351863490,1738824657214,-154.0,0.00014579,2]
[351863492,1738824657226,-154.0,0.00014579,2]
[351863494,1738824657236,-154.0,0.00014579,2]
[351863496,1738824657246,-154.0,0.00014579,2]
[351863498,1738824657258,-154.0,0.00014579,2]
[351863500,1738824657268,-166.59,0.00014579,2]
[351863502,1738824657279,-156.0,0.00014579,2]
[351863504,1738824657289,-156.0,0.00014579,2]
[351863506,1738824657300,-156.0,0.00014579,2]
[351863508,1738824657310,-156.0,0.00014579,2]
[351863510,1738824657320,-156.0,0.00014579,2]
[351863512,1738824657330,-157.89,0.00014579,2]
[351863514,1738824657340,-2073.00867391,0.0001459,2]
[351863516,1738824657350,-157.042011,0.00014657,2]
[351863518,1738824657360,-500.0,0.00014657,2]
[351863520,1738824657370,-500.0,0.00014657,2]
[351863522,1738824657380,-500.0,0.00014657,2]
[351863524,1738824657391,-500.0,0.00014657,2]
[351863526,1738824657401,-714.35,0.00014657,2]
[351863528,1738824657411,-500.0,0.00014657,2]
[351863530,1738824657421,-500.0,0.00014657,2]
[351863532,1738824657431,-500.0,0.00014657,2]
[351863534,1738824657441,-500.0,0.00014657,2]
[351863536,1738824657451,-500.0,0.00014657,2]
[351863538,1738824657461,-500.0,0.00014657,2]
[351863540,1738824657470,-686.88,0.00014657,2]
[351863542,1738824657480,-500.0,0.00014657,2]
[351863544,1738824657490,-500.0,0.00014657,2]
[351863546,1738824657500,-500.0,0.00014657,2]
[351863548,1738824657510,-500.0,0.00014657,2]
[351863550,1738824657520,-500.0,0.00014657,2]
[351863552,1738824657529,-500.0,0.00014657,2]
[351863553,1738824657540,-500.0,0.00014657,2]
[351863554,1738824657550,-500.0,0.00014657,2]
[351863555,1738824657560,-608.97,0.00014657,2]
[351863556,1738824657571,-500.0,0.00014657,2]
[351863557,1738824657581,-632.38,0.00014657,2]
[351863558,1738824657591,-500.0,0.00014657,2]
[351863559,1738824657601,-500.0,0.00014657,2]
[351863561,1738824657610,-500.0,0.00014657,2]
[351863562,1738824657620,-500.0,0.00014657,2]
[351863564,1738824657630,-500.0,0.00014657,2]
[351863566,1738824657641,-568.2,0.00014657,2]
[351863568,1738824657651,-500.0,0.00014657,2]
[351863570,1738824657664,-1516.6,0.00014657,2]
[351863572,1738824657674,-830.51,0.00014657,2]
[351863575,1738824657684,-500.0,0.00014657,2]
[351863577,1738824657695,-1507.74,0.00014657,2]
[351863579,1738824657704,-500.0,0.00014657,2]
[351863581,1738824657714,-632.17,0.00014657,2]
[351863583,1738824657724,-500.0,0.00014657,2]
[351863585,1738824657735,-558.48,0.00014657,2]
[351863587,1738824657745,-500.0,0.00014657,2]
[351863589,1738824657756,-500.0,0.00014657,2]
[351863591,1738824657766,-1035.18,0.00014657,2]
[351863593,1738824657775,-500.0,0.00014657,2]
[351863595,1738824657786,-500.0,0.00014657,2]
[351863597,1738824657797,-865.28,0.00014657,2]
[351863599,1738824657807,-1925.87,0.00014657,2]
[351863601,1738824657817,-500.0,0.00014657,2]
[351863617,1738824657956,-500.0,0.00014657,2]
[351863619,1738824657967,-720.03,0.00014657,2]
[351863621,1738824657977,-500.0,0.00014657,2]
[351863623,1738824657987,-631.5,0.00014657,2]
[351863625,1738824657997,-1337.91,0.00014657,2]
[351863627,1738824658006,-751.64,0.00014657,2]
[351863629,1738824658016,-500.0,0.00014657,2]
[351863631,1738824658026,-703.19,0.00014657,2]
[351863633,1738824658035,-500.0,0.00014657,2]
[351863635,1738824658045,-500.0,0.00014657,2]
[351863637,1738824658054,-579.19,0.00014657,2]
[351863638,1738824658064,-500.0,0.00014657,2]
[351863641,1738824658074,-500.0,0.00014657,2]
[351863642,1738824658083,-1166.37,0.00014657,2]
[351863644,1738824658092,-500.0,0.00014657,2]
[351863646,1738824658102,-662.51,0.00014657,2]
[351863648,1738824658112,-542.13,0.00014657,2]
[351863651,1738824658122,-500.0,0.00014657,2]
[351863653,1738824658132,-500.0,0.00014657,2]
[351863655,1738824658141,-500.0,0.00014657,2]
[351863657,1738824658151,-500.0,0.00014657,2]
[351863659,1738824658160,-500.76,0.00014657,2]
[351863661,1738824658170,-389.23331639,0.00014657,2]
[351863663,1738824658179,-541.44,0.00014657,2]
[351863665,1738824658189,-500.0,0.00014657,2]
[351863667,1738824658199,-578.45,0.00014657,2]
[351863669,1738824658208,-917.26,0.00014657,2]
[351863671,1738824658218,-500.0,0.00014657,2]
[351863673,1738824658228,-500.0,0.00014657,2]
[351863675,1738824658238,-920.07,0.00014657,2]
[351863677,1738824658247,-500.0,0.00014657,2]
[351863679,1738824658256,-500.0,0.00014657,2]
[351863681,1738824658266,-1575.64,0.00014657,2]
[351863683,1738824658276,-500.0,0.00014657,2]
[351863685,1738824658286,-500.0,0.00014657,2]
[351863687,1738824658296,-500.0,0.00014657,2]
[351863689,1738824658305,-500.0,0.00014657,2]
[351863691,1738824658315,-587.18,0.00014657,2]
[351863693,1738824658325,-500.0,0.00014657,2]
[351863695,1738824658335,-190.312673,0.00014657,2]
[351863697,1738824658344,-985.18,0.00014657,2]
[351863699,1738824658353,-616.8449243,0.00014657,2]
[351863701,1738824658362,-500.0,0.00014657,2]
[351863703,1738824658371,-170.64754,0.00014657,2]
[351863705,1738824658381,-190.312673,0.00014657,2]
[351863707,1738824658391,-500.0,0.00014657,2]
[351863709,1738824658400,-151.0,0.00014657,2]
[351863711,1738824658410,-500.0,0.00014657,2]
[351863713,1738824658419,-1892.84,0.00014657,2]
[351863715,1738824658429,-5432.48,0.00014657,2]
[351863717,1738824658438,-716.28,0.00014657,2]
[351863719,1738824658448,-500.0,0.00014657,2]
[351863721,1738824658457,-384.8637739,0.00014657,2]
[351863723,1738824658467,-500.0,0.00014657,2]
[351863725,1738824658476,-151.0,0.00014657,2]
[351863727,1738824658485,-500.0,0.00014657,2]
[351863730,1738824658496,-500.0,0.00014657,2]
[351863732,1738824658506,-560.51,0.00014657,2]
[351863734,1738824658516,-737.41,0.00014657,2]
[351863736,1738824658525,-500.0,0.00014657,2]
[351863737,1738824658534,-500.0,0.00014657,2]
[351863740,1738824658544,-779.45,0.00014657,2]
[351863742,1738824658553,-1875.24,0.00014657,2]
[351863744,1738824658563,-19668.54,0.00014657,2]
[351863746,1738824658572,-872.99,0.00014657,2]
[351863748,1738824658582,-503.54,0.00014657,2]
[351863750,1738824658591,-500.0,0.00014657,2]
[351863752,1738824658601,-2529.92,0.00014657,2]
[351863754,1738824658611,-500.0,0.00014657,2]
[351863756,1738824658621,-715.59,0.00014657,2]
[351863758,1738824658631,-515.42,0.00014657,2]
[351863760,1738824658641,-151.0,0.00014657,2]
[351863762,1738824658651,-500.0,0.00014657,2]
[351863764,1738824658662,-1516.58,0.00014657,2]
[351863766,1738824658671,-590.02,0.00014657,2]
[351863768,1738824658681,-566.12,0.00014657,2]
[351863770,1738824658691,-678.56,0.00014657,2]
[351863772,1738824658702,-500.0,0.00014657,2]
[351863774,1738824658711,-500.0,0.00014657,2]
[351863776,1738824658721,-958.9,0.00014657,2]
[351863778,1738824658731,-500.0,0.00014657,2]
[351863780,1738824658741,-151.0,0.00014657,2]
[351863782,1738824658750,-515.24,0.00014657,2]
[351863784,1738824658759,-151.0,0.00014657,2]
[351863786,1738824658769,-151.0,0.00014657,2]
[351863788,1738824658778,-151.0,0.00014657,2]
[351863790,1738824658788,-10441.65,0.00014657,2]
[351863792,1738824658797,-500.0,0.00014657,2]
[351863794,1738824658806,-883.74,0.00014657,2]
[351863796,1738824658816,-693.9,0.00014657,2]
[351863797,1738824658826,-2934.8,0.00014657,2]
[351863799,1738824658835,-5009.69,0.00014657,2]
[351863801,1738824658846,-500.0,0.00014657,2]
[351863803,1738824658856,-151.0,0.00014657,2]
[351863805,1738824658865,-1630.66,0.00014657,2]
[351863808,1738824658876,-500.0,0.00014657,2]
[351863810,1738824658886,-739.28,0.00014657,2]
[351863812,1738824658895,-500.0,0.00014657,2]
[351863814,1738824658904,-151.0,0.00014657,2]
[351863816,1738824658914,-3310.21,0.00014657,2]
[351863818,1738824658923,-1450.39,0.00014657,2]
[351863820,1738824658932,-1712.8,0.00014657,2]
[351863822,1738824658942,-571.75,0.00014657,2]
[351863824,1738824658951,-500.0,0.00014657,2]
[351863826,1738824658960,-500.0,0.00014657,2]
[351863829,1738824658969,-537.56715095,0.00014657,2]
[351863831,1738824658978,-863.41,0.00014657,2]
[351863833,1738824658985,-500.0,0.00014657,2]
[351863835,1738824658992,-709.25,0.00014657,2]
[351863837,1738824659001,-500.0,0.00014657,2]
[351863838,1738824659008,-1772.35,0.00014657,2]
[351863840,1738824659016,-500.0,0.00014657,2]
[351863842,1738824659024,-500.0,0.00014657,2]
[351863844,1738824659031,-222.94555897,0.00014657,2]
[351863846,1738824659040,-746.74,0.00014657,2]
[351863848,1738824659048,-4325.54,0.00014657,2]
[351863850,1738824659057,-1606.15,0.00014657,2]
[351863852,1738824659067,-626.43,0.00014657,2]
[351863854,1738824659077,-500.0,0.00014657,2]
[351863856,1738824659086,-4235.16,0.00014657,2]
[351863858,1738824659096,-3235.62,0.00014657,2]
[351863860,1738824659106,-22559.0,0.00014657,2]
[351863862,1738824659116,-802.83,0.00014657,2]
[351863864,1738824659125,-8844.85,0.00014657,2]
[351863866,1738824659135,-1786.89,0.00014657,2]
[351863868,1738824659145,-500.0,0.00014657,2]
[351863871,1738824659154,-834.36,0.00014657,2]
[351863873,1738824659164,-500.0,0.00014657,2]
[351863874,1738824659173,-1744.59,0.00014657,2]
[351863876,1738824659183,-500.0,0.00014657,2]
[351863879,1738824659192,-2592.28,0.00014657,2]
[351863881,1738824659201,-1371.74,0.00014657,2]
[351863883,1738824659211,-500.0,0.00014657,2]
[351863885,1738824659220,-504.48,0.00014657,2]
[351863887,1738824659229,-500.0,0.00014657,2]
[351863889,1738824659240,-500.0,0.00014657,2]
[351863891,1738824659251,-500.0,0.00014657,2]
[351863893,1738824659262,-523.14,0.00014657,2]
[351863895,1738824659273,-54214.48,0.00014657,2]
[351863897,1738824659282,-1441.43,0.00014657,2]
[351863898,1738824659292,-936.73,0.00014657,2]
[351863900,1738824659301,-613.53,0.00014657,2]
[351863903,1738824659311,-2003.93,0.00014657,2]
[351863905,1738824659320,-619.5,0.00014657,2]
[351863907,1738824659329,-500.0,0.00014657,2]
[351863909,1738824659338,-2827.37,0.00014657,2]
[351863911,1738824659347,-5311.61,0.00014657,2]
[351863912,1738824659357,-2123.3,0.00014657,2]
[351863914,1738824659368,-500.0,0.00014657,2]
[351863917,1738824659378,-1611.08,0.00014657,2]
[351863919,1738824659389,-874.61,0.00014657,2]
[351863920,1738824659400,-2457.5,0.00014657,2]
[351863923,1738824659410,-573.3031144,0.00014662,2]
[351863925,1738824659422,-332.00938811,0.00014662,2]
[351863927,1738824659432,-2073.00867391,0.00014728,2]
[351863929,1738824659441,-163.5183233,0.00014781,2]
[351863931,1738824659451,-349.81512601,0.00014794,2]
[351863933,1738824659460,-500.0,0.00014794,2]
[351863935,1738824659469,-500.0,0.00014794,2]
[351863937,1738824659478,-500.0,0.00014794,2]
[351863939,1738824659488,-714.35,0.00014794,2]
[351863941,1738824659497,-500.0,0.00014794,2]
[351863943,1738824659507,-500.0,0.00014794,2]
[351863944,1738824659517,-500.0,0.00014794,2]
[351863946,1738824659527,-646.23075932,0.00014794,2]
[351863948,1738824659536,-500.0,0.00014794,2]
[351863950,1738824659546,-500.0,0.00014794,2]
[351863953,1738824659555,-686.88,0.00014794,2]
[351863955,1738824659564,-500.0,0.00014794,2]
[351863956,1738824659574,-500.0,0.00014794,2]
[351863958,1738824659584,-500.0,0.00014794,2]
[351863960,1738824659593,-500.0,0.00014794,2]
[351863962,1738824659603,-500.0,0.00014794,2]
[351863964,1738824659612,-500.0,0.00014794,2]
[351863966,1738824659621,-500.0,0.00014794,2]
[351863968,1738824659632,-500.0,0.00014794,2]
[351863971,1738824659642,-608.97,0.00014794,2]
[351863973,1738824659652,-500.0,0.00014794,2]
[351863975,1738824659665,-632.38,0.00014794,2]
[351863977,1738824659675,-500.0,0.00014794,2]
[351863979,1738824659684,-500.0,0.00014794,2]
[351863980,1738824659695,-500.0,0.00014794,2]
[351863982,1738824659704,-500.0,0.00014794,2]
[351863985,1738824659714,-500.0,0.00014794,2]
[351863986,1738824659723,-568.2,0.00014794,2]
[351863988,1738824659734,-465.47798974,0.00014794,2]
[351863991,1738824659744,-1516.6,0.00014794,2]
[351863992,1738824659753,-830.51,0.00014794,2]
[351863994,1738824659763,-500.0,0.00014794,2]
[351863996,1738824659772,-1507.74,0.00014794,2]
[351863998,1738824659782,-397.56830328,0.00014794,2]
[351864000,1738824659792,-151.0,0.00014794,2]
[351864002,1738824659801,-632.17,0.00014794,2]
[351864005,1738824659811,-500.0,0.00014794,2]
[351864006,1738824659820,-558.48,0.00014794,2]
[351864008,1738824659830,-500.0,0.00014794,2]
[351864011,1738824659840,-500.0,0.00014794,2]
[351864013,1738824659850,-1035.18,0.00014794,2]
[351864015,1738824659860,-500.0,0.00014794,2]
[351864016,1738824659870,-500.0,0.00014794,2]
[351864017,1738824659879,-865.28,0.00014794,2]
[351864018,1738824659888,-1925.87,0.00014794,2]
[351864019,1738824659898,-500.0,0.00014794,2]
[351864020,1738824659907,-500.0,0.00014794,2]
[351864021,1738824659916,-720.03,0.00014794,2]
[351864022,1738824659926,-500.0,0.00014794,2]
[351864023,1738824659936,-631.5,0.00014794,2]
[351864024,1738824659945,-1337.91,0.00014794,2]
[351864025,1738824659954,-751.64,0.00014794,2]
[351864027,1738824659964,-500.0,0.00014794,2]
[351864029,1738824659973,-703.19,0.00014794,2]
[351864031,1738824659983,-500.0,0.00014794,2]
[351864033,1738824659992,-500.0,0.00014794,2]
[351864035,1738824660001,-579.19,0.00014794,2]
[351864037,1738824660011,-500.0,0.00014794,2]
[351864039,1738824660020,-500.0,0.00014794,2]
[351864041,1738824660030,-1166.37,0.00014794,2]
[351864043,1738824660039,-500.0,0.00014794,2]
[351864045,1738824660050,-662.51,0.00014794,2]
[351864047,1738824660059,-542.13,0.00014794,2]
[351864049,1738824660069,-500.0,0.00014794,2]
[351864051,1738824660079,-500.0,0.00014794,2]
[351864053,1738824660089,-500.0,0.00014794,2]
[351864055,1738824660099,-229.5921136,0.00014794,2]
[351864057,1738824660108,-500.76,0.00014794,2]
[351864059,1738824660118,-541.44,0.00014794,2]
[351864061,1738824660127,-500.0,0.00014794,2]
[351864063,1738824660137,-578.45,0.00014794,2]
[351864065,1738824660146,-917.26,0.00014794,2]
[351864067,1738824660156,-500.0,0.00014794,2]
[351864069,1738824660166,-500.0,0.00014794,2]
[351864071,1738824660176,-920.07,0.00014794,2]
[351864073,1738824660185,-500.0,0.00014794,2]
[351864075,1738824660194,-500.0,0.00014794,2]
[351864077,1738824660204,-1575.64,0.00014794,2]
[351864079,1738824660213,-500.0,0.00014794,2]
[351864081,1738824660223,-500.0,0.00014794,2]
[351864083,1738824660233,-500.0,0.00014794,2]
[351864085,1738824660243,-500.0,0.00014794,2]
[351864088,1738824660253,-587.18,0.00014794,2]
[351864089,1738824660263,-500.0,0.00014794,2]
[351864092,1738824660272,-985.18,0.00014794,2]
[351864094,1738824660282,-226.68405958,0.00014794,2]
[351864096,1738824660293,-500.0,0.00014794,2]
[351864098,1738824660302,-151.0,0.00014794,2]
[351864100,1738824660312,-191.19982288,0.00014794,2]
[351864102,1738824660321,-1892.84,0.00014794,2]
[351864104,1738824660330,-5432.48,0.00014794,2]
[351864106,1738824660340,-716.28,0.00014794,2]
[351864108,1738824660349,-500.0,0.00014794,2]
[351864110,1738824660359,-151.0,0.00014794,2]
[351864112,1738824660368,-500.0,0.00014794,2]
[351864114,1738824660377,-500.0,0.00014794,2]
[351864116,1738824660388,-500.0,0.00014794,2]
[351864118,1738824660398,-560.51,0.00014794,2]
[351864120,1738824660407,-737.41,0.00014794,2]
[351864122,1738824660417,-500.0,0.00014794,2]
[351864124,1738824660427,-500.0,0.00014794,2]
[351864126,1738824660437,-779.45,0.00014794,2]
[351864128,1738824660446,-1875.24,0.00014794,2]
[351864130,1738824660456,-19668.54,0.00014794,2]
[351864132,1738824660465,-872.99,0.00014794,2]
[351864134,1738824660475,-503.54,0.00014794,2]
[351864136,1738824660485,-500.0,0.00014794,2]
[351864138,1738824660495,-2529.92,0.00014794,2]
[351864140,1738824660504,-500.0,0.00014794,2]
[351864142,1738824660514,-715.59,0.00014794,2]
[351864144,1738824660524,-515.42,0.00014794,2]
[351864146,1738824660536,-151.0,0.00014794,2]
[351864148,1738824660545,-500.0,0.00014794,2]
[351864150,1738824660555,-1516.58,0.00014794,2]
[351864152,1738824660565,-590.02,0.00014794,2]
[351864154,1738824660574,-566.12,0.00014794,2]
[351864156,1738824660584,-678.56,0.00014794,2]
[351864158,1738824660594,-500.0,0.00014794,2]
[351864160,1738824660604,-500.0,0.00014794,2]
[351864162,1738824660615,-958.9,0.00014794,2]
[351864164,1738824660624,-500.0,0.00014794,2]
[351864166,1738824660635,-151.0,0.00014794,2]
[351864168,1738824660645,-515.24,0.00014794,2]
[351864170,1738824660657,-151.0,0.00014794,2]
[351864172,1738824660668,-283.259948,0.00014794,2]
[351864174,1738824660677,-151.0,0.00014794,2]
[351864176,1738824660687,-500.0,0.00014794,2]
[351864178,1738824660696,-10441.65,0.00014794,2]
[351864180,1738824660706,-883.74,0.00014794,2]
[351864182,1738824660716,-693.9,0.00014794,2]
[351864184,1738824660725,-1784.53664798,0.00014794,2]
[351864310,1738824661961,385.23,0.00010959,2]
[351864387,1738824662785,86.08259161,0.00012,2]
[351866112,1738825388693,1000.0,0.00019,120]
[351866119,1738825642106,-342.99867669,0.00013,13]
[351866136,1738825750180,-657.00132331,0.00013,13]
[351866137,1738825750203,-1000.0,0.00013,2]
[351866138,1738825750230,-7438.69753278,0.00013142,2]
[351866139,1738825750253,-306.76414391,0.0001315,2]
[351866140,1738825753159,-393.23585609,0.0001315,2]
[351866145,1738825816614,595.82148201,0.0001315,2]
[351866146,1738825816638,104.17851799,0.0001315,2]
[351866222,1738825832249,-392.83195908,0.00013598,2]
[351866225,1738825832262,-733.50078654,0.00013598,2]
[351866226,1738825832272,-300.0,0.00013672,2]
[351866228,1738825832282,-500.0,0.00013673,2]
[351866230,1738825832291,-500.0,0.00013673,2]
[351866231,1738825832300,-243.79908131,0.00013673,2]
[351866289,1738825838031,-23.96800388,0.00013673,2]
[351866291,1738825838041,-504.91411847,0.00013673,2]
[351866293,1738825838051,-500.0,0.00013673,2]
[351866295,1738825838061,-328.13739955,0.00013673,2]
[351866297,1738825838071,-150.499999,0.00013673,2]
[351866299,1738825838080,-500.0,0.00013673,2]
[351866301,1738825838090,-497.25127919,0.00013673,2]
[351866303,1738825838101,-500.88347879,0.00013673,2]
[351866305,1738825838111,-500.0,0.00013673,2]
[351866307,1738825838120,-500.0,0.00013673,2]
[351866309,1738825838129,-500.96871249,0.00013673,2]
[351866311,1738825838139,-632.0432787,0.00013673,2]
[351866313,1738825838148,-300.94314428,0.00013697,2]
[351866315,1738825838158,-500.0,0.00013698,2]
[351866317,1738825838167,-500.0,0.00013698,2]
[351866319,1738825838178,-500.0,0.00013698,2]
[351866321,1738825838187,-504.1692633,0.00013698,2]
[351866323,1738825838197,-500.0,0.00013698,2]
[351866325,1738825838206,-500.0,0.00013698,2]
[351866327,1738825838215,-500.0,0.00013698,2]
[351866329,1738825838224,-500.0,0.00013698,2]
[351866331,1738825838233,-500.0,0.00013698,2]
[351866333,1738825838243,-500.0,0.00013698,2]
[351866335,1738825838253,-500.0,0.00013698,2]
[351866337,1738825838264,-796.27,0.00013698,2]
[351866339,1738825838273,-500.0,0.00013698,2]
[351866341,1738825838283,-500.0,0.00013698,2]
[351866343,1738825838292,-500.0,0.00013698,2]
[351866345,1738825838302,-500.0,0.00013698,2]
[351866347,1738825838311,-269.43353608,0.00013698,2]
[351866349,1738825838320,-500.0,0.00013698,2]
[351866351,1738825838330,-500.0,0.00013698,2]
[351866353,1738825838339,-500.0,0.00013698,2]
[351866355,1738825838349,-500.0,0.00013698,2]
[351866357,1738825838358,-500.0,0.00013698,2]
[351866359,1738825838368,-500.0,0.00013698,2]
[351866361,1738825838377,-500.0,0.00013698,2]
[351866363,1738825838386,-500.0,0.00013698,2]
[351866365,1738825838395,-500.0,0.00013698,2]
[351866367,1738825838405,-500.0,0.00013698,2]
[351866369,1738825838414,-506.76451804,0.00013698,2]
[351866371,1738825838423,-500.0,0.00013698,2]
[351866373,1738825838432,-500.0,0.00013698,2]
[351866375,1738825838441,-500.0,0.00013698,2]
[351866377,1738825838451,-500.0,0.00013698,2]
[351866379,1738825838460,-500.0,0.00013698,2]
[351866380,1738825838469,-500.0,0.00013698,2]
[351866381,1738825838479,-500.0,0.00013698,2]
[351866382,1738825838488,-270.20366542,0.00013698,2]
[351866383,1738825838501,-229.79633458,0.00013698,2]
[351866384,1738825838510,-500.0,0.00013698,2]
[351866385,1738825838519,-500.0,0.00013698,2]
[351866386,1738825838528,-500.0,0.00013698,2]
[351866387,1738825838537,-500.0,0.00013698,2]
[351866388,1738825838546,-500.0,0.00013698,2]
[351866389,1738825838555,-500.0,0.00013698,2]
[351866390,1738825838564,-500.0,0.00013698,2]
[351866391,1738825838573,-510.38218126,0.00013698,2]
[351866393,1738825838582,-500.0,0.00013698,2]
[351866394,1738825838592,-500.0,0.00013698,2]
[351866396,1738825838601,-600.52951734,0.00013698,2]
[351866398,1738825838610,-500.0,0.00013698,2]
[351866400,1738825838619,-500.0,0.00013698,2]
[351866402,1738825838629,-500.0,0.00013698,2]
[351866404,1738825838639,-503.96357399,0.00013698,2]
[351866406,1738825838648,-1663.81,0.00013698,2]
[351866408,1738825838657,-506.64,0.00013698,2]
[351866411,1738825838667,-500.0,0.00013698,2]
[351866413,1738825838676,-500.0,0.00013698,2]
[351866415,1738825838685,-500.0,0.00013698,2]
[351866416,1738825838695,-1635.87,0.00013698,2]
[351866418,1738825838704,-892.58,0.00013698,2]
[351866420,1738825838713,-500.0,0.00013698,2]
[351866422,1738825838722,-500.0,0.00013698,2]
[351866425,1738825838732,-500.0,0.00013698,2]
[351866427,1738825838741,-500.0,0.00013698,2]
[351866429,1738825838751,-500.0,0.00013698,2]
[351866431,1738825838761,-500.0,0.00013698,2]
[351866433,1738825838771,-500.0,0.00013698,2]
[351866435,1738825838781,-647.02,0.00013698,2]
[351866437,1738825838791,-500.0,0.00013698,2]
[351866439,1738825838800,-500.0,0.00013698,2]
[351866441,1738825838810,-500.0,0.00013698,2]
[351866443,1738825838819,-515.26,0.00013698,2]
[351866445,1738825838828,-500.0,0.00013698,2]
[351866447,1738825838838,-500.0,0.00013698,2]
[351866449,1738825838848,-500.0,0.00013698,2]
[351866451,1738825838858,-500.0,0.00013698,2]
[351866453,1738825838868,-500.0,0.00013698,2]
[351866455,1738825838878,-500.0,0.00013698,2]
[351866457,1738825838887,-1205.63,0.00013698,2]
[351866459,1738825838897,-500.0,0.00013698,2]
[351866461,1738825838906,-500.0,0.00013698,2]
[351866463,1738825838916,-500.0,0.00013698,2]